[Event "Shropshire Chess Congress 2019"]
[Site "Telford"]
[Date "2019.01.05"]
[Round "3"]
[White "Brotherton, Trevor"]
[Black "Paul, Nathanael"]
[Result "0-1"]
[ECO "A06"]
[WhiteElo "2118"]
[BlackElo "1925"]
[Annotator "NA"]
[PlyCount "98"]
[EventDate "2019.01.04"]
[EventType "swiss"]
[EventCountry "GBR"]
[SourceTitle "playchess.com"]
[Source "ChessBase"]
[SourceQuality "1"]
[TimeControl "5400+30"]

1. g3 {[%emt 0:00:00]} d5 {[%emt 0:00:00]} 2. Nf3 {[%emt 0:00:00]} c6 {[%emt 0:00:00]} 3. Bg2 {[%emt 0:00:00]} Nf6 {[%emt 0:00:00]} 4. O-O {[%emt 0:00:00]} Bf5 {[%emt 0:00:27]} 5. c4 {[%emt 0:01:05]} e6 {[%emt 0:00:47]} 6. cxd5 {[%emt 0:00:27]} exd5 {[%emt 0:01:17]} 7. Qb3 {[%emt 0:00:18]} Qb6 {[%emt 0:01:06]} 8. Qxb6 {[%emt 0:01:44]} axb6 {[%emt 0:00:05]} 9. Nc3 {[%emt 0:00:35]} Bd6 {[%emt 0:03:11]} 10. d3 {[%emt 0:02:07]} O-O {[%emt 0:01:09]} 11. Nh4 {[%emt 0:02:34]} Bg6 {[%emt 0:02:25]} 12. Nxg6 {[%emt 0:01:09]} hxg6 {[%emt 0:01:45]} 13. e4 {[%emt 0:00:38]} dxe4 {[%emt 0:00:20]} 14. dxe4 {[%emt 0:00:56]} b5 {[%emt 0:03:37]} 15. f4 {[%emt 0:14:20]} Bc5+ {[%emt 0:02:48]} 16. Kh1 {[%emt 0:00:08]} Ng4 {[%emt 0:00:07]} 17. Bf3 {[%emt 0:01:05]} Ne3 {[%emt 0:01:37]} 18. Bxe3 {[%emt 0:01:07]} Bxe3 {[%emt 0:00:05]} 19. a3 Nd7 {[%emt 0:02:03]} 20. Rad1 {[%emt 0:03:14]} Nb6 {[%emt 0:00:06]} 21. Be2 {[%emt 0:08:34]} Rfd8 {[%emt 0:01:07]} 22. Kg2 {[%emt 0:01:16]} Bd4 {[%emt 0:01:01]} 23. Rf3 {[%emt 0:25:20]} Bxc3 {[%emt 0:00:29]} 24. Rxc3 {[%emt 0:00:27]} Rxd1 {[%emt 0:00:21]} 25. Bxd1 {[%emt 0:00:05]} Rd8 {[%emt 0:00:13]} 26. Bc2 {[%emt 0:01:13]} Rd2+ {[%emt 0:00:31]} 27. Kf3 {[%emt 0:00:32]} Nc4 {[%emt 0:01:10]} 28. a4 {[%emt 0:03:24]} Nxb2 {[%emt 0:02:09]} 29. axb5 {[%emt 0:00:18]} cxb5 {[%emt 0:00:15]} 30. Bb3 {[%emt 0:04:41]} Rd3+ {[%emt 0:03:05]} 31. Rxd3 {[%emt 0:00:08]} Nxd3 {[%emt 0:00:04]} 32. Ke3 {[%emt 0:00:59]} Nc5 {[%emt 0:00:04]} 33. Bd5 {[%emt 0:00:21]} b6 {[%emt 0:08:16]} 34. Kd4 {[%emt 0:00:43]} b4 {[%emt 0:01:29]} 35. Kc4 {[%emt 0:03:35]} b3 {[%emt 0:00:25]} 36. Kc3 {[%emt 0:00:29]} Kf8 {[%emt 0:00:19]} 37. e5 {[%emt 0:00:43]} Ke7 {[%emt 0:25:40]} 38. Bxb3 {[%emt 0:04:18]} Nxb3 {[%emt 0:00:07]} 39. Kxb3 {[%emt 0:00:07]} f6 {[%emt 0:00:02]} 40. exf6+ {[%emt 0:10:17]} Kxf6 {[%emt 0:00:07]} 41. Kc4 {[%emt 0:02:02]} Kf5 {[%emt 0:00:06]} 42. Kb5 {[%emt 0:00:30]} Kg4 {[%emt 0:00:04]} 43. Kxb6 {[%emt 0:00:33]} Kh3 {[%emt 0:00:07]} 44. Kc6 {[%emt 0:02:07]} Kxh2 {[%emt 0:00:05]} 45. Kd5 {[%emt 0:00:47]} Kxg3 {[%emt 0:00:13]} 46. Ke4 {[%emt 0:00:40]} Kf2 {[%emt 0:00:57]} 47. Kd4 {[%emt 0:04:44]} Kf3 {[%emt 0:00:12]} 48. Ke5 {[%emt 0:00:05]} Ke3 {[%emt 0:00:05]} 49. f5 {[%emt 0:00:22]} g5 0-1

[Event "Shropshire Chess Congress 2019"]
[Site "Telford"]
[Date "2019.01.05"]
[Round "3"]
[White "Hynes, Anthony M"]
[Black "Maciol, Ryszard"]
[Result "0-1"]
[ECO "A05"]
[WhiteElo "2093"]
[BlackElo "2163"]
[Annotator "NA"]
[PlyCount "82"]
[EventDate "2019.01.04"]
[EventType "swiss"]
[EventCountry "GBR"]
[SourceTitle "playchess.com"]
[Source "ChessBase"]
[SourceQuality "1"]
[TimeControl "5400+30"]

1. Nf3 {[%emt 0:00:00]} Nf6 {[%emt 0:00:00]} 2. g3 {[%emt 0:00:00]} d6 {[%emt 0:02:14]} 3. Bg2 {[%emt 0:00:00]} e5 {[%emt 0:00:17]} 4. d3 {[%emt 0:00:23]} g6 {[%emt 0:00:50]} 5. O-O {[%emt 0:00:08]} Bg7 {[%emt 0:00:03]} 6. c4 {[%emt 0:00:17]} O-O {[%emt 0:00:19]} 7. Nc3 {[%emt 0:00:03]} Nc6 {[%emt 0:02:37]} 8. Rb1 {[%emt 0:00:26]} Ne8 {[%emt 0:03:41]} 9. b4 {[%emt 0:02:15]} h6 {[%emt 0:04:39]} 10. b5 {[%emt 0:00:21]} Ne7 {[%emt 0:01:09]} 11. Qc2 {[%emt 0:04:10]} Be6 {[%emt 0:04:20]} 12. Bb2 {[%emt 0:07:07]} Qd7 {[%emt 0:02:14]} 13. Rfc1 {[%emt 0:00:18]} f5 {[%emt 0:02:48]} 14. Nd2 {[%emt 0:05:12]} Rb8 {[%emt 0:01:51]} 15. Ba3 {[%emt 0:04:48]} f4 {[%emt 0:04:34]} 16. c5 {[%emt 0:02:40]} fxg3 {[%emt 0:03:34]} 17. hxg3 {[%emt 0:00:10]} Bh3 {[%emt 0:02:02]} 18. Bh1 {[%emt 0:03:08]} Qf5 {[%emt 0:02:33]} 19. Nf3 {[%emt 0:01:56]} Qg4 {[%emt 0:12:22]} 20. Rb4 {[%emt 0:02:05]} Qf5 {[%emt 0:04:41]} 21. Ra4 {[%emt 0:00:13]} g5 {[%emt 0:01:04]} 22. e3 {[%emt 0:01:09]} h5 {[%emt 0:02:48]} 23. d4 {[%emt 0:10:03]} exd4 {[%emt 0:04:58]} 24. exd4 {[%emt 0:06:49]} g4 {[%emt 0:02:40]} 25. Nh4 {[%emt 0:01:25]} Qf7 {[%emt 0:04:25]} 26. Re1 {[%emt 0:00:43]} Bf6 {[%emt 0:00:19]} 27. Nf5 {[%emt 0:03:06]} Kh8 {[%emt 0:00:28]} 28. Nxe7 {[%emt 0:01:06]} Bxe7 {[%emt 0:00:03]} 29. Rxa7 {[%emt 0:07:56]} h4 {[%emt 0:01:17]} 30. Qe2 {[%emt 0:02:00]} hxg3 {[%emt 0:00:57]} 31. fxg3 {[%emt 0:00:06]} Bf6 {[%emt 0:01:04]} 32. Ra4 {[%emt 0:04:30]} Ng7 {[%emt 0:01:09]} 33. Ne4 {[%emt 0:02:47]} d5 {[%emt 0:03:34]} 34. Nxf6 {[%emt 0:03:17]} Qxf6 {[%emt 0:01:44]} 35. c6 {[%emt 0:07:02]} Rfe8 {[%emt 0:00:50]} 36. Be7 {[%emt 0:00:39]} Qf7 {[%emt 0:00:51]} 37. cxb7 {[%emt 0:01:20]} Rxb7 {[%emt 0:00:30]} 38. Qd2 {[%emt 0:05:21]} Rxb5 {[%emt 0:04:21]} 39. Bb4 {[%emt 0:04:39]} Rb6 {[%emt 0:02:09]} 40. Ra3 {[%emt 0:05:12]} Rxe1+ {[%emt 0:02:11]} 41. Qxe1 {[%emt 0:00:04]} Rxb4 {[%emt 0:01:16]} 0-1

[Event "Shropshire Chess Congress 2019"]
[Site "Telford"]
[Date "2019.01.05"]
[Round "3"]
[White "Edge, John"]
[Black "Stewart, Ashley"]
[Result "0-1"]
[ECO "B22"]
[WhiteElo "1972"]
[BlackElo "2122"]
[Annotator "NA"]
[PlyCount "84"]
[EventDate "2019.01.04"]
[EventType "swiss"]
[EventCountry "GBR"]
[SourceTitle "playchess.com"]
[Source "ChessBase"]
[SourceQuality "1"]
[TimeControl "5400+30"]

1. e4 {[%emt 0:00:00]} c5 {[%emt 0:00:00]} 2. c3 {[%emt 0:04:27]} d5 {[%emt 0:00:01]} 3. exd5 {[%emt 0:00:03]} Qxd5 {[%emt 0:00:01]} 4. d4 {[%emt 0:00:13]} g6 {[%emt 0:00:04]} 5. Na3 {[%emt 0:00:07]} Bg7 {[%emt 0:01:43]} 6. Nf3 {[%emt 0:01:40]} cxd4 {[%emt 0:00:11]} 7. Bc4 {[%emt 0:01:44]} Qe4+ {[%emt 0:00:02]} 8. Be3 {[%emt 0:00:31]} Nh6 {[%emt 0:00:09]} 9. Nb5 {[%emt 0:02:43]} O-O {[%emt 0:01:51]} 10. cxd4 {[%emt 0:02:11]} Nc6 {[%emt 0:03:15]} 11. Nc3 {[%emt 0:09:51]} Qg4 {[%emt 0:05:14]} 12. h3 {[%emt 0:02:40]} Qh5 {[%emt 0:08:38]} 13. Qd2 {[%emt 0:04:05]} Ng4 {[%emt 0:03:18]} 14. O-O-O {[%emt 0:08:45]} Nxe3 {[%emt 0:00:30]} 15. fxe3 {[%emt 0:00:09]} Bd7 {[%emt 0:08:40]} 16. Kb1 {[%emt 0:02:37]} Rac8 {[%emt 0:02:59]} 17. Nd5 {[%emt 0:05:28]} Bf5+ {[%emt 0:11:52]} 18. Ka1 {[%emt 0:00:21]} Be4 {[%emt 0:00:25]} 19. g4 {[%emt 0:05:34]} Qh6 {[%emt 0:02:23]} 20. Rhf1 {[%emt 0:14:20]} e5 {[%emt 0:14:02]} 21. g5 {[%emt 0:23:04]} Qxh3 {[%emt 0:16:13]} 22. Ng1 {[%emt 0:06:38]} Qg2 {[%emt 0:04:03]} 23. Rf2 {[%emt 0:02:04]} Qxg5 {[%emt 0:01:39]} 24. Nc3 {[%emt 0:00:44]} Bf5 {[%emt 0:03:31]} 25. Nf3 {[%emt 0:00:11]} Qd8 {[%emt 0:02:04]} 26. d5 {[%emt 0:02:03]} Nb4 {[%emt 0:02:23]} 27. Bb3 {[%emt 0:00:10]} Nd3 {[%emt 0:01:32]} 28. Rh2 {[%emt 0:00:11]} Nc5 {[%emt 0:00:45]} 29. Bc2 {[%emt 0:00:52]} Bxc2 {[%emt 0:01:31]} 30. Qxc2 {[%emt 0:00:02]} Qf6 {[%emt 0:02:03]} 31. Qg2 {[%emt 0:00:31]} h6 {[%emt 0:02:45]} 32. Rf1 {[%emt 0:01:13]} Qa6 {[%emt 0:01:00]} 33. Nd2 {[%emt 0:00:19]} Na4 {[%emt 0:00:37]} 34. Nde4 {[%emt 0:00:47]} Nxc3 {[%emt 0:00:35]} 35. Nxc3 {[%emt 0:00:03]} e4 {[%emt 0:00:44]} 36. Nxe4 {[%emt 0:00:12]} Qc4 {[%emt 0:00:34]} 37. Rb1 {[%emt 0:01:07]} Qd3 {[%emt 0:00:34]} 38. Nd6 {[%emt 0:00:24]} Rcd8 {[%emt 0:00:20]} 39. Nxb7 {[%emt 0:00:39]} Rxd5 {[%emt 0:00:22]} 40. Qf3 {[%emt 0:00:23]} Qb5 {[%emt 0:00:41]} 41. e4 {[%emt 0:00:39]} Rd7 {[%emt 0:00:18]} 42. e5 {[%emt 0:00:35]} Qxb7 {[%emt 0:00:10]} 0-1

[Event "Shropshire Chess Congress 2019"]
[Site "Telford"]
[Date "2019.01.05"]
[Round "3"]
[White "Jarvis, Derek A"]
[Black "Sygnowski, Tomasz"]
[Result "0-1"]
[ECO "C05"]
[WhiteElo "1959"]
[BlackElo "2143"]
[Annotator "NA"]
[PlyCount "122"]
[EventDate "2019.01.04"]
[EventType "swiss"]
[EventCountry "GBR"]
[SourceTitle "playchess.com"]
[Source "ChessBase"]
[SourceQuality "1"]
[TimeControl "5400+30"]

1. e4 {[%emt 0:00:00]} e6 {[%emt 0:00:00]} 2. d4 {[%emt 0:00:00]} d5 {[%emt 0:00:00]} 3. Nd2 {[%emt 0:00:11]} Nf6 {[%emt 0:00:02]} 4. e5 {[%emt 0:00:32]} Nfd7 {[%emt 0:00:06]} 5. Bd3 {[%emt 0:00:33]} c5 {[%emt 0:00:06]} 6. c3 {[%emt 0:00:11]} Nc6 {[%emt 0:00:04]} 7. Ne2 {[%emt 0:00:28]} Qb6 {[%emt 0:01:07]} 8. O-O {[%emt 0:01:05]} Be7 {[%emt 0:00:23]} 9. Nf3 {[%emt 0:02:13]} a5 {[%emt 0:04:45]} 10. a3 {[%emt 0:05:32]} a4 {[%emt 0:06:15]} 11. h4 {[%emt 0:02:48]} h6 {[%emt 0:05:14]} 12. h5 {[%emt 0:02:53]} O-O {[%emt 0:08:47]} 13. Bc2 {[%emt 0:09:05]} Qa6 {[%emt 0:02:34]} 14. Nf4 {[%emt 0:06:21]} Re8 {[%emt 0:03:47]} 15. Re1 {[%emt 0:03:41]} Nf8 {[%emt 0:00:34]} 16. Bd2 {[%emt 0:06:03]} Bd7 {[%emt 0:00:54]} 17. Be3 {[%emt 0:04:02]} Qb6 {[%emt 0:01:30]} 18. Qc1 {[%emt 0:03:33]} cxd4 {[%emt 0:00:46]} 19. Nxd4 {[%emt 0:01:50]} Nxd4 {[%emt 0:00:28]} 20. Bxd4 {[%emt 0:01:16]} Bc5 {[%emt 0:01:37]} 21. Ne2 {[%emt 0:01:53]} Rec8 {[%emt 0:02:10]} 22. Rb1 {[%emt 0:03:49]} Qd8 {[%emt 0:00:25]} 23. Qf4 {[%emt 0:04:29]} b6 {[%emt 0:04:44]} 24. Rbd1 {[%emt 0:02:58]} Bb5 {[%emt 0:00:46]} 25. Ng3 {[%emt 0:02:44]} Nd7 {[%emt 0:03:08]} 26. Re3 {[%emt 0:04:56]} Qc7 {[%emt 0:08:52]} 27. Ne2 {[%emt 0:10:53]} Bxe2 {[%emt 0:04:29]} 28. Rxe2 {[%emt 0:00:13]} f6 {[%emt 0:03:04]} 29. Qg4 {[%emt 0:01:36]} f5 {[%emt 0:02:25]} 30. Qg3 {[%emt 0:02:27]} Nb8 {[%emt 0:06:03]} 31. Be3 {[%emt 0:04:06]} Bxe3 {[%emt 0:00:38]} 32. Rxe3 {[%emt 0:00:48]} Nc6 {[%emt 0:00:10]} 33. Qg6 {[%emt 0:01:41]} Qf7 {[%emt 0:01:22]} 34. Rg3 {[%emt 0:02:47]} Qxg6 {[%emt 0:04:57]} 35. Rxg6 {[%emt 0:00:15]} Kf7 {[%emt 0:00:54]} 36. f4 {[%emt 0:00:47]} b5 {[%emt 0:00:29]} 37. g4 {[%emt 0:03:28]} Ne7 {[%emt 0:01:12]} 38. gxf5 {[%emt 0:00:34]} Nxg6 {[%emt 0:00:10]} 39. fxe6+ {[%emt 0:01:11]} Kxe6 {[%emt 0:00:47]} 40. Bxg6 {[%emt 0:00:37]} Rc4 {[%emt 0:00:56]} 41. Bd3 {[%emt 0:01:27]} Rxf4 {[%emt 0:00:24]} 42. Bxb5 {[%emt 0:00:19]} Kxe5 {[%emt 0:00:21]} 43. Bc6 {[%emt 0:00:21]} Rd8 {[%emt 0:03:39]} 44. Kg2 {[%emt 0:02:27]} Rd6 {[%emt 0:03:40]} 45. Be8 {[%emt 0:01:19]} d4 {[%emt 0:04:00]} 46. Re1+ {[%emt 0:01:41]} Re4 {[%emt 0:03:52]} 47. Rxe4+ {[%emt 0:00:53]} Kxe4 {[%emt 0:00:04]} 48. Bxa4 {[%emt 0:00:28]} dxc3 {[%emt 0:00:51]} 49. bxc3 {[%emt 0:00:17]} Kd3 {[%emt 0:00:40]} 50. Kg3 {[%emt 0:00:41]} Kxc3 {[%emt 0:00:06]} 51. Be8 {[%emt 0:00:18]} Kd4 {[%emt 0:00:44]} 52. Kg4 {[%emt 0:00:38]} Ke5 {[%emt 0:00:23]} 53. a4 {[%emt 0:00:25]} Rd1 {[%emt 0:00:10]} 54. Bb5 {[%emt 0:00:22]} Rd4+ {[%emt 0:02:15]} 55. Kf3 {[%emt 0:00:39]} Kf6 {[%emt 0:01:23]} 56. Ke3 {[%emt 0:00:27]} Rh4 {[%emt 0:00:07]} 57. Kd3 {[%emt 0:00:43]} Ke7 {[%emt 0:00:40]} 58. a5 {[%emt 0:00:26]} Rxh5 {[%emt 0:00:18]} 59. Kc4 {[%emt 0:00:18]} Kd6 {[%emt 0:00:09]} 60. a6 {[%emt 0:00:32]} Rxb5 {[%emt 0:00:36]} 61. Kxb5 {[%emt 0:00:49]} Ke5 0-1

[Event "Shropshire Chess Congress 2019"]
[Site "Telford"]
[Date "2019.01.05"]
[Round "3"]
[White "Ansari, Athar"]
[Black "Mason, Donald J"]
[Result "1-0"]
[ECO "A48"]
[WhiteElo "1893"]
[BlackElo "2097"]
[Annotator "NA"]
[PlyCount "91"]
[EventDate "2019.01.04"]
[EventType "swiss"]
[EventCountry "GBR"]
[SourceTitle "playchess.com"]
[Source "ChessBase"]
[SourceQuality "1"]
[TimeControl "5400+30"]

1. d4 {[%emt 0:00:00]} Nf6 {[%emt 0:00:00]} 2. Bf4 {[%emt 0:00:00]} g6 {[%emt 0:00:00]} 3. Nf3 {[%emt 0:01:23]} Bg7 {[%emt 0:00:00]} 4. e3 {[%emt 0:01:41]} O-O {[%emt 0:00:52]} 5. Be2 {[%emt 0:01:59]} d6 {[%emt 0:00:15]} 6. c3 {[%emt 0:01:14]} Nbd7 {[%emt 0:05:17]} 7. h3 {[%emt 0:00:16]} Qe8 {[%emt 0:00:35]} 8. Nbd2 {[%emt 0:01:24]} e5 {[%emt 0:00:32]} 9. Bg3 {[%emt 0:05:05]} Qe7 {[%emt 0:12:58]} 10. O-O {[%emt 0:01:06]} Nh5 {[%emt 0:09:00]} 11. Bh4 {[%emt 0:00:50]} Bf6 {[%emt 0:02:30]} 12. Bxf6 {[%emt 0:00:11]} Nhxf6 {[%emt 0:01:41]} 13. b4 {[%emt 0:00:45]} Re8 {[%emt 0:04:40]} 14. c4 {[%emt 0:02:23]} e4 {[%emt 0:08:00]} 15. Nh2 {[%emt 0:00:36]} h5 {[%emt 0:02:28]} 16. f4 {[%emt 0:01:16]} exf3 {[%emt 0:06:40]} 17. Rxf3 {[%emt 0:00:09]} Nf8 {[%emt 0:00:54]} 18. Qf1 {[%emt 0:01:48]} N6h7 {[%emt 0:09:35]} 19. e4 {[%emt 0:02:35]} Ne6 {[%emt 0:06:21]} 20. Rd3 {[%emt 0:00:55]} Neg5 {[%emt 0:03:57]} 21. Bf3 {[%emt 0:00:10]} f5 {[%emt 0:04:19]} 22. Re1 {[%emt 0:01:43]} Bd7 {[%emt 0:10:58]} 23. e5 {[%emt 0:01:24]} dxe5 {[%emt 0:00:36]} 24. Bxb7 {[%emt 0:00:25]} Rab8 {[%emt 0:01:05]} 25. Bd5+ {[%emt 0:00:14]} Kg7 {[%emt 0:01:00]} 26. dxe5 {[%emt 0:01:21]} Rxb4 {[%emt 0:00:54]} 27. Nhf3 {[%emt 0:01:44]} c6 {[%emt 0:01:30]} 28. Nxg5 {[%emt 0:01:46]} Nxg5 {[%emt 0:00:18]} 29. Bf3 {[%emt 0:00:48]} Ne6 {[%emt 0:04:49]} 30. Qf2 {[%emt 0:00:18]} Rb6 {[%emt 0:02:32]} 31. Nb3 {[%emt 0:00:17]} Nf4 {[%emt 0:00:35]} 32. Rd6 {[%emt 0:00:33]} Be6 {[%emt 0:00:11]} 33. Qd4 {[%emt 0:00:25]} Qh4 {[%emt 0:00:32]} 34. Rd1 {[%emt 0:00:50]} Qg3 {[%emt 0:00:40]} 35. Kf1 {[%emt 0:01:42]} Rb4 {[%emt 0:00:40]} 36. Rxc6 {[%emt 0:00:09]} Nxh3 {[%emt 0:00:24]} 37. Rd2 {[%emt 0:00:27]} Rxc4 {[%emt 0:00:37]} 38. Rxc4 {[%emt 0:00:10]} Bxc4+ {[%emt 0:00:25]} 39. Qxc4 {[%emt 0:00:07]} Rxe5 {[%emt 0:00:07]} 40. Qc7+ {[%emt 0:00:47]} Kh6 {[%emt 0:00:11]} 41. Re2 {[%emt 0:00:19]} Qh2 {[%emt 0:01:18]} 42. Rxe5 {[%emt 0:00:27]} Qg1+ {[%emt 0:00:16]} 43. Ke2 {[%emt 0:00:08]} Nf4+ {[%emt 0:00:31]} 44. Kd2 {[%emt 0:00:11]} Qf2+ {[%emt 0:00:44]} 45. Kc3 {[%emt 0:00:10]} Qf1 {[%emt 0:00:20]} 46. Re3 {[%emt 0:00:27]} 1-0

[Event "Shropshire Chess Congress 2019"]
[Site "Telford"]
[Date "2019.01.06"]
[Round "4"]
[White "Maciol, Ryszard"]
[Black "Walton, Alan J"]
[Result "1-0"]
[ECO "A96"]
[WhiteElo "2163"]
[BlackElo "2149"]
[Annotator "NA"]
[PlyCount "63"]
[EventDate "2019.01.04"]
[EventType "swiss"]
[EventCountry "GBR"]
[SourceTitle "playchess.com"]
[Source "ChessBase"]
[SourceQuality "1"]
[TimeControl "5400+30"]

1. d4 {[%emt 0:04:50]} e6 {[%emt 0:00:00]} 2. c4 {[%emt 0:00:16]} f5 {[%emt 0:00:00]} 3. g3 {[%emt 0:00:17]} Nf6 {[%emt 0:00:00]} 4. Bg2 {[%emt 0:00:08]} Be7 {[%emt 0:00:13]} 5. Nf3 {[%emt 0:00:19]} d6 {[%emt 0:00:05]} 6. O-O {[%emt 0:00:20]} O-O {[%emt 0:00:05]} 7. Nc3 {[%emt 0:01:34]} Ne4 {[%emt 0:00:07]} 8. Qc2 {[%emt 0:03:07]} Nxc3 {[%emt 0:00:05]} 9. Qxc3 {[%emt 0:02:19]} a5 {[%emt 0:01:23]} 10. Qc2 {[%emt 0:01:58]} Qe8 {[%emt 0:05:18]} 11. Bd2 {[%emt 0:03:29]} Bf6 {[%emt 0:03:31]} 12. Bc3 {[%emt 0:04:20]} Qg6 {[%emt 0:00:25]} 13. Rfd1 {[%emt 0:03:43]} Nd7 {[%emt 0:05:41]} 14. Qd2 {[%emt 0:01:08]} a4 {[%emt 0:00:38]} 15. b4 {[%emt 0:06:50]} Nb6 {[%emt 0:05:48]} 16. Qd3 {[%emt 0:00:29]} Re8 {[%emt 0:07:49]} 17. Ne1 {[%emt 0:08:04]} d5 {[%emt 0:02:26]} 18. cxd5 {[%emt 0:06:33]} exd5 {[%emt 0:02:28]} 19. Nf3 {[%emt 0:00:48]} Nc4 {[%emt 0:07:31]} 20. Ne5 {[%emt 0:05:26]} Bxe5 {[%emt 0:00:20]} 21. Bxd5+ {[%emt 0:00:20]} Be6 {[%emt 0:03:37]} 22. dxe5 {[%emt 0:01:59]} Nb6 {[%emt 0:02:16]} 23. Bxb7 {[%emt 0:00:45]} Rad8 {[%emt 0:00:36]} 24. Qc2 {[%emt 0:12:07]} Nd5 {[%emt 0:04:53]} 25. b5 {[%emt 0:01:03]} Nxc3 {[%emt 0:05:43]} 26. Qxc3 {[%emt 0:00:12]} Rxd1+ {[%emt 0:00:06]} 27. Rxd1 {[%emt 0:00:03]} Bxa2 {[%emt 0:00:07]} 28. Qxc7 {[%emt 0:00:58]} f4 {[%emt 0:00:48]} 29. Bc6 {[%emt 0:01:51]} Rf8 {[%emt 0:00:24]} 30. Rd8 {[%emt 0:01:05]} fxg3 {[%emt 0:01:18]} 31. Rxf8+ {[%emt 0:00:10]} Kxf8 {[%emt 0:00:04]} 32. Qd8+ {[%emt 0:00:19]} 1-0

[Event "Shropshire Chess Congress 2019"]
[Site "Telford"]
[Date "2019.01.06"]
[Round "4"]
[White "Sygnowski, Tomasz"]
[Black "Ansari, Athar"]
[Result "1-0"]
[ECO "B01"]
[WhiteElo "2143"]
[BlackElo "1893"]
[Annotator "NA"]
[PlyCount "41"]
[EventDate "2019.01.04"]
[EventType "swiss"]
[EventCountry "GBR"]
[SourceTitle "playchess.com"]
[Source "ChessBase"]
[SourceQuality "1"]
[TimeControl "5400+30"]

1. e4 {[%emt 0:00:28]} d5 {[%emt 0:00:00]} 2. exd5 {[%emt 0:01:11]} Qxd5 {[%emt 0:00:00]} 3. Nf3 {[%emt 0:00:44]} Nf6 {[%emt 0:00:22]} 4. Be2 {[%emt 0:03:09]} Bf5 {[%emt 0:00:14]} 5. O-O {[%emt 0:00:28]} c6 {[%emt 0:01:52]} 6. Nc3 {[%emt 0:00:41]} Qa5 {[%emt 0:00:17]} 7. b4 {[%emt 0:00:22]} Qc7 {[%emt 0:00:12]} 8. b5 {[%emt 0:00:36]} e6 {[%emt 0:01:44]} 9. Rb1 {[%emt 0:08:44]} Nd5 {[%emt 0:04:02]} 10. bxc6 {[%emt 0:02:23]} bxc6 {[%emt 0:00:26]} 11. Bb2 {[%emt 0:05:45]} Nd7 {[%emt 0:05:08]} 12. Re1 {[%emt 0:02:19]} Bg4 {[%emt 0:05:37]} 13. h3 {[%emt 0:10:43]} Bh5 {[%emt 0:01:36]} 14. Ng5 {[%emt 0:02:25]} Bxe2 {[%emt 0:08:01]} 15. Qxe2 {[%emt 0:00:23]} Nf4 {[%emt 0:05:20]} 16. Qf3 {[%emt 0:03:32]} h6 {[%emt 0:01:45]} 17. Nb5 {[%emt 0:05:53]} Qc8 {[%emt 0:09:39]} 18. Nxf7 {[%emt 0:01:02]} Kxf7 {[%emt 0:03:30]} 19. Qxf4+ {[%emt 0:00:22]} Nf6 {[%emt 0:00:53]} 20. Nc7 {[%emt 0:03:56]} Rb8 {[%emt 0:01:02]} 21. Nxe6 {[%emt 0:01:31]} 1-0

[Event "Shropshire Chess Congress 2019"]
[Site "Telford"]
[Date "2019.01.06"]
[Round "4"]
[White "Stewart, Ashley"]
[Black "Fajfer, Bartosz"]
[Result "1/2-1/2"]
[ECO "A38"]
[WhiteElo "2122"]
[BlackElo "1921"]
[Annotator "NA"]
[PlyCount "142"]
[EventDate "2019.01.04"]
[EventType "swiss"]
[EventCountry "GBR"]
[SourceTitle "playchess.com"]
[Source "ChessBase"]
[SourceQuality "1"]
[TimeControl "5400+30"]

1. c4 {[%emt 0:00:00]} c5 {[%emt 0:00:35]} 2. g3 {[%emt 0:00:00]} g6 {[%emt 0:00:07]} 3. Bg2 {[%emt 0:00:00]} Bg7 {[%emt 0:00:09]} 4. Nc3 {[%emt 0:00:00]} Nc6 {[%emt 0:00:13]} 5. Nf3 {[%emt 0:00:00]} Nf6 {[%emt 0:01:10]} 6. d4 {[%emt 0:00:00]} cxd4 {[%emt 0:00:13]} 7. Nxd4 {[%emt 0:00:00]} O-O {[%emt 0:01:42]} 8. O-O {[%emt 0:00:10]} Nxd4 {[%emt 0:07:56]} 9. Qxd4 {[%emt 0:00:02]} d6 {[%emt 0:00:13]} 10. Qd3 {[%emt 0:02:15]} Nd7 {[%emt 0:06:22]} 11. b3 {[%emt 0:00:50]} Nc5 {[%emt 0:02:56]} 12. Qd2 {[%emt 0:09:11]} a5 {[%emt 0:22:31]} 13. Bb2 {[%emt 0:09:06]} a4 {[%emt 0:01:10]} 14. Nd5 {[%emt 0:03:13]} Bxb2 {[%emt 0:09:58]} 15. Qxb2 {[%emt 0:00:07]} Re8 {[%emt 0:01:10]} 16. b4 {[%emt 0:09:41]} Nd7 {[%emt 0:00:36]} 17. Rfd1 {[%emt 0:03:09]} Nb6 {[%emt 0:05:35]} 18. Ne3 {[%emt 0:03:08]} Qc7 {[%emt 0:00:43]} 19. Rac1 {[%emt 0:05:05]} Be6 {[%emt 0:04:03]} 20. c5 {[%emt 0:07:18]} dxc5 {[%emt 0:00:37]} 21. bxc5 {[%emt 0:03:15]} Nd7 {[%emt 0:00:27]} 22. Qxb7 {[%emt 0:12:29]} Ra7 {[%emt 0:01:29]} 23. Qxc7 {[%emt 0:07:21]} Rxc7 {[%emt 0:00:08]} 24. c6 {[%emt 0:00:13]} Nb8 {[%emt 0:02:39]} 25. a3 {[%emt 0:04:54]} Bb3 {[%emt 0:01:14]} 26. Rd4 {[%emt 0:03:09]} e6 {[%emt 0:00:41]} 27. Rd3 {[%emt 0:08:03]} Kf8 {[%emt 0:03:07]} 28. Rdc3 {[%emt 0:01:56]} Rd8 {[%emt 0:02:42]} 29. Nc4 {[%emt 0:01:48]} Ke7 {[%emt 0:05:40]} 30. Na5 {[%emt 0:01:16]} Bd5 {[%emt 0:01:10]} 31. e4 {[%emt 0:02:19]} Ba2 {[%emt 0:02:44]} 32. R3c2 {[%emt 0:00:24]} Bb3 {[%emt 0:00:23]} 33. Rb2 {[%emt 0:01:40]} e5 {[%emt 0:01:32]} 34. Nxb3 {[%emt 0:01:02]} axb3 {[%emt 0:00:04]} 35. Rxb3 {[%emt 0:00:06]} Nxc6 {[%emt 0:00:48]} 36. Rbc3 {[%emt 0:01:33]} Kd6 {[%emt 0:01:15]} 37. Bf1 {[%emt 0:00:40]} Rdc8 {[%emt 0:04:39]} 38. Ba6 {[%emt 0:00:15]} Nd4 {[%emt 0:00:04]} 39. Rxc7 {[%emt 0:01:44]} Rxc7 {[%emt 0:00:14]} 40. Rxc7 {[%emt 0:01:14]} Kxc7 {[%emt 0:00:01]} 41. Bc4 {[%emt 0:00:15]} f6 {[%emt 0:01:19]} 42. Bg8 {[%emt 0:00:11]} h6 {[%emt 0:00:16]} 43. Bf7 {[%emt 0:00:21]} g5 {[%emt 0:00:14]} 44. Kg2 {[%emt 0:01:11]} Nb5 {[%emt 0:00:22]} 45. Bc4 {[%emt 0:00:32]} Nxa3 {[%emt 0:01:27]} 46. Bd3 {[%emt 0:00:00]} Kc6 {[%emt 0:00:58]} 47. Kh3 {[%emt 0:00:26]} Kc5 {[%emt 0:00:29]} 48. f3 {[%emt 0:01:44]} Kd4 {[%emt 0:00:08]} 49. Ba6 {[%emt 0:00:17]} Ke3 {[%emt 0:03:41]} 50. Kg4 {[%emt 0:00:12]} Nc2 {[%emt 0:00:07]} 51. Kh5 {[%emt 0:01:10]} Kxf3 {[%emt 0:00:12]} 52. Kxh6 {[%emt 0:00:01]} g4 {[%emt 0:00:12]} 53. Kh5 {[%emt 0:00:46]} Ne3 {[%emt 0:00:19]} 54. Kg6 {[%emt 0:00:43]} Kg2 {[%emt 0:05:45]} 55. Kxf6 {[%emt 0:00:02]} Kxh2 {[%emt 0:00:14]} 56. Kxe5 {[%emt 0:00:03]} Kxg3 {[%emt 0:00:14]} 57. Kd4 {[%emt 0:01:17]} Kf4 {[%emt 0:01:06]} 58. e5 {[%emt 0:00:24]} g3 {[%emt 0:00:32]} 59. Bb7 {[%emt 0:00:16]} Nf5+ {[%emt 0:01:00]} 60. Kd3 {[%emt 0:00:10]} Kxe5 {[%emt 0:00:22]} 61. Ke2 {[%emt 0:00:21]} Kf4 {[%emt 0:00:16]} 62. Kf1 {[%emt 0:01:11]} Ne3+ {[%emt 0:00:45]} 63. Kg1 {[%emt 0:00:06]} Nc4 {[%emt 0:00:11]} 64. Kg2 {[%emt 0:00:48]} Nd6 {[%emt 0:00:11]} 65. Bc6 {[%emt 0:00:16]} Nf5 {[%emt 0:00:13]} 66. Bb7 {[%emt 0:00:14]} Nh4+ {[%emt 0:00:10]} 67. Kg1 {[%emt 0:00:08]} Ke3 {[%emt 0:00:08]} 68. Bc6 {[%emt 0:00:32]} Nf3+ {[%emt 0:00:08]} 69. Bxf3 {[%emt 0:00:23]} Kxf3 {[%emt 0:00:01]} 70. Kf1 {[%emt 0:00:01]} g2+ {[%emt 0:00:10]} 71. Kg1 {[%emt 0:00:07]} Kg3 1/2-1/2